bitfinex/quotes_ETHUSD_20240713
["timestamp","ask_amount","ask_price","bid_price","bid_amount"]
[1720902261127,1.09288635,3170.3,3170.0,0.804]
[1720902261337,1.09288635,3170.5,3170.0,0.804]
[1720902262440,0.33008294,3170.6,3170.0,0.804]
[1720902262624,1.09288582,3170.4,3170.0,0.804]
[1720902262811,1.09288582,3170.3,3170.0,0.804]
[1720902263010,1.09288582,3170.5,3170.0,0.804]
[1720902263223,1.09288582,3170.4,3170.0,0.804]
[1720902263417,1.09288582,3170.5,3170.0,0.804]
[1720902263618,1.09288582,3170.4,3170.0,0.804]
[1720902263823,1.09288582,3170.5,3170.0,0.804]
[1720902264023,1.09288582,3170.4,3170.0,0.804]
[1720902264239,1.09288582,3170.5,3170.0,0.804]
[1720902264414,1.09288582,3170.4,3170.0,0.804]
[1720902264818,1.09288582,3170.3,3170.0,0.804]
[1720902265124,1.09288582,3170.2,3170.0,0.804]
[1720902265323,1.09288582,3170.5,3170.1,2.3982]
[1720902265497,1.09288346,3170.4,3170.1,2.3982]
[1720902265696,1.09288346,3170.3,3170.1,2.3695]
[1720902265896,1.09288454,3170.2,3170.1,2.3695]
[1720902266340,1.09288482,3170.2,3170.1,2.3695]
[1720902268116,1.09288482,3170.2,3170.1,3.40135]
[1720902268729,0.33008294,3170.6,3170.1,3.40135]
[1720902269041,1.09287923,3170.5,3170.2,0.804]
[1720902269243,0.33008294,3170.6,3170.2,0.804]
[1720902269244,1.09288038,3170.4,3170.2,0.804]
[1720902269435,1.09288038,3170.3,3170.2,0.804]
[1720902269635,1.09288038,3170.5,3170.2,0.804]
[1720902269944,1.09288038,3170.4,3170.2,0.804]
[1720902270134,1.09288038,3170.3,3170.2,0.804]
[1720902270305,1.09288038,3170.5,3170.2,0.804]
[1720902270511,1.09288038,3170.4,3170.2,0.804]
[1720902270765,1.09288038,3170.5,3170.2,0.804]
[1720902270906,1.09288038,3170.4,3170.2,0.804]
[1720902271242,1.09288038,3170.3,3170.2,0.804]
[1720902271438,1.09288038,3170.5,3170.2,0.804]
[1720902271648,1.09288038,3170.4,3170.2,0.804]
[1720902271810,1.09288038,3170.5,3170.2,0.804]
[1720902272413,0.33008294,3170.6,3170.2,0.804]
[1720902272732,1.09288456,3170.5,3170.2,0.804]
[1720902272919,1.09288456,3170.4,3170.2,0.804]
[1720902273122,1.09288456,3170.5,3170.2,0.804]
[1720902273338,1.09288456,3170.4,3170.2,0.804]
[1720902273536,1.09288456,3170.3,3170.2,0.804]
[1720902275746,1.09288456,3170.3,3170.2,0.704]
[1720902276053,1.09287254,3170.3,3170.2,0.704]
[1720902276224,0.33008294,3170.6,3170.2,0.704]
[1720902276427,1.09287654,3170.5,3170.3,2.4495]
[1720902276632,1.09287654,3170.4,3170.3,2.4495]
[1720902279138,0.33008294,3170.6,3170.3,2.4495]
[1720902279345,1.09286475,3170.5,3170.3,2.4495]
[1720902279515,1.09286475,3170.4,3170.3,2.4495]
[1720902279715,1.09286475,3170.5,3170.3,2.4495]
[1720902281053,1.09286475,3170.5,3170.2,2.91204]
[1720902281249,1.70962806,3170.5,3170.2,2.91204]
[1720902281427,1.09286475,3170.4,3170.2,2.91204]
[1720902282569,0.61676331,3170.5,3170.2,2.91204]
[1720902282717,1.0928698,3170.3,3170.2,2.91204]
[1720902286052,0.33008294,3170.6,3170.2,2.81204]
[1720902286268,1.60042101,3170.5,3170.2,2.81204]
[1720902286476,0.33008294,3170.6,3170.2,2.81204]
[1720902286639,1.09285942,3170.5,3170.2,2.81204]
[1720902286966,0.33008294,3170.6,3170.2,2.81204]
[1720902286967,1.09285942,3170.4,3170.2,2.81204]
[1720902287165,1.09285942,3170.5,3170.2,2.81204]
[1720902287365,1.09285942,3170.4,3170.2,2.81204]
[1720902287566,1.09285942,3170.3,3170.2,2.81204]
[1720902289069,0.33008294,3170.6,3170.2,2.81204]
[1720902289462,1.09285459,3170.5,3170.2,2.81204]
[1720902289767,1.09285459,3170.4,3170.2,2.81204]
[1720902290070,1.09285459,3170.3,3170.2,2.81204]
[1720902290234,1.09285459,3170.5,3170.2,2.81204]
[1720902290435,1.09285459,3170.4,3170.2,2.81204]
[1720902290669,1.09285459,3170.3,3170.2,2.81204]
[1720902290866,1.09285459,3170.5,3170.2,2.81204]
[1720902291035,1.09285459,3170.4,3170.2,2.81204]
[1720902291234,1.0928687,3170.3,3170.2,2.81204]
[1720902292792,0.33008294,3170.6,3170.2,2.81204]
[1720902293071,1.0928691,3170.5,3170.2,2.81204]
[1720902293274,1.0928691,3170.4,3170.2,2.81204]
[1720902293455,1.0928691,3170.3,3170.2,2.81204]
[1720902296178,1.09286258,3170.3,3170.2,2.81204]
[1720902296639,0.33008294,3170.6,3170.2,2.81204]
[1720902296841,1.09286439,3170.5,3170.2,2.81204]
[1720902297062,1.09286439,3170.4,3170.2,2.81204]
[1720902297271,1.09286439,3170.3,3170.2,2.81204]
[1720902299172,0.33008294,3170.6,3170.2,2.81204]
[1720902299400,1.09286012,3170.5,3170.2,2.81204]
[1720902299601,1.09285941,3170.4,3170.2,2.81204]
[1720902299806,1.09285941,3170.3,3170.2,2.81204]
[1720902300603,1.09285941,3170.3,3170.2,5.24344]
[1720902302108,1.09284941,3170.3,3170.2,7.45148]
[1720902305620,1.09285208,3170.5,3170.3,2.20798]
[1720902305913,1.09285148,3170.4,3170.3,2.20798]
[1720902308716,0.33008294,3170.6,3170.3,2.20798]
[1720902308873,1.09285125,3170.4,3170.3,2.20798]
[1720902312213,0.33008294,3170.6,3170.4,2.20787]
[1720902312420,1.09282666,3170.5,3170.4,2.20787]
[1720902315411,0.33008294,3170.6,3170.4,2.20787]
[1720902315719,1.09282588,3170.5,3170.4,2.20787]
[1720902315916,0.33008294,3170.6,3170.4,2.20787]
[1720902316129,1.09282932,3170.5,3170.4,2.20787]
[1720902318531,0.33008294,3170.6,3170.4,2.20787]
[1720902318890,1.09284166,3170.5,3170.4,2.20787]
[1720902322403,2.65346362,3170.6,3170.5,2.20785]
[1720902322603,3.74629034,3170.6,3170.5,2.20785]
[1720902323531,1.42290966,3170.6,3170.5,2.20785]
[1720902325634,1.42288567,3170.6,3170.5,2.20785]
[1720902326039,1.42288566,3170.6,3170.5,2.20785]
[1720902328450,0.33008294,3170.6,3170.5,2.20785]
[1720902328629,1.42287767,3170.6,3170.5,2.20785]
[1720902328828,0.33008294,3170.6,3170.5,2.20785]
[1720902329143,1.42287761,3170.6,3170.5,2.20785]
[1720902332245,0.33008294,3170.6,3170.5,2.20785]
[1720902332488,3.74592414,3170.6,3170.5,2.20785]
[1720902332643,1.79746769,3170.6,3170.5,2.20785]
[1720902332850,4.12051655,3170.6,3170.5,2.20785]
[1720902333049,1.79746769,3170.6,3170.5,2.20785]
[1720902335592,1.79748541,3170.6,3170.5,2.20785]
[1720902336092,1.79748539,3170.6,3170.5,2.20785]
[1720902338657,1.79748441,3170.6,3170.5,2.20785]
[1720902338856,1.79748439,3170.6,3170.5,2.20785]
[1720902342275,1.42287414,3170.6,3170.5,2.20785]
[1720902343494,3.74599269,3170.6,3170.5,2.20785]
[1720902343698,1.42287414,3170.6,3170.5,2.20785]
[1720902345533,0.33008294,3170.6,3170.5,2.20785]
[1720902345831,1.42288639,3170.6,3170.5,2.20785]
[1720902346122,1.42288645,3170.6,3170.5,2.20785]
[1720902348644,1.42288586,3170.6,3170.5,2.20785]
[1720902348930,0.33008294,3170.6,3170.5,2.20785]
[1720902349081,1.42288681,3170.6,3170.5,2.20785]
[1720902351528,1.4228876,3170.6,3170.5,2.20785]
[1720902352541,1.42288719,3170.6,3170.5,2.20785]
[1720902356110,0.33008294,3170.6,3170.5,2.20785]
[1720902356311,1.42285064,3170.6,3170.5,2.20785]
[1720902358746,1.42285749,3170.6,3170.5,2.20785]
[1720902359098,0.33008294,3170.6,3170.5,2.20785]
[1720902359296,1.42285729,3170.6,3170.5,2.20785]
[1720902361589,0.33008294,3170.6,3170.5,2.20785]
[1720902361794,1.42285914,3170.6,3170.5,2.20785]
[1720902364913,0.33008294,3170.6,3170.5,2.20785]
[1720902365111,1.4228589,3170.6,3170.5,2.20785]
[1720902365294,0.33008294,3170.6,3170.5,2.20785]
[1720902365642,1.4228588,3170.6,3170.5,2.20785]
[1720902367961,1.42286518,3170.6,3170.5,2.20785]
[1720902368308,0.33008294,3170.6,3170.5,2.20785]
[1720902368512,1.42286548,3170.6,3170.5,2.20785]
[1720902371025,3.7462928,3170.6,3170.5,2.20785]
[1720902371652,3.74645553,3170.6,3170.5,2.20785]
[1720902372451,1.42292086,3170.6,3170.5,2.20785]
[1720902372952,1.79756641,3170.6,3170.5,2.20785]
[1720902375049,0.70472849,3170.6,3170.5,2.20785]
[1720902375284,1.422897,3170.6,3170.5,2.20785]
[1720902375592,1.42289255,3170.6,3170.5,2.20785]
[1720902378288,0.33008294,3170.6,3170.5,2.20785]
[1720902378607,1.42289599,3170.6,3170.5,2.20785]
[1720902380895,3.74632267,3170.6,3170.5,2.20785]
[1720902381696,3.74633066,3170.6,3170.5,2.20785]
[1720902382251,1.42290398,3170.6,3170.5,2.20785]
[1720902384994,0.33008294,3170.6,3170.5,2.20785]
[1720902385202,1.42289584,3170.6,3170.5,2.20785]
[1720902385366,0.33008294,3170.6,3170.5,2.20785]
[1720902385715,1.42290082,3170.6,3170.5,2.20785]
[1720902387801,0.33008294,3170.6,3170.5,2.20785]
[1720902388014,1.42289353,3170.6,3170.5,2.20785]
[1720902388496,1.4228909,3170.6,3170.5,2.20785]
[1720902391710,0.33008294,3170.6,3170.5,2.20785]
[1720902391899,1.42290678,3170.6,3170.5,2.20785]
[1720902395193,1.42288055,3170.6,3170.5,4.4157]
[1720902395370,1.42288055,3170.6,3170.5,6.7529]
[1720902395571,0.33008294,3170.6,3170.5,6.7529]
[1720902395807,1.42282549,3170.6,3170.5,6.7529]
[1720902398232,1.42284455,3170.6,3170.5,6.7529]
[1720902401587,1.42284259,3170.6,3170.5,6.7529]
[1720902404845,0.33008294,3170.6,3170.5,6.7529]
[1720902405004,1.42284246,3170.6,3170.5,6.7529]
[1720902405780,1.42284253,3170.6,3170.5,4.4157]
[1720902408156,1.42284935,3170.6,3170.5,4.4157]
[1720902408445,0.33008294,3170.6,3170.5,4.4157]
[1720902408746,1.42284942,3170.6,3170.5,4.4157]
[1720902411508,0.33008294,3170.6,3170.5,4.4157]
[1720902411713,1.42283848,3170.6,3170.5,4.4157]
[1720902411930,1.42283841,3170.6,3170.5,4.4157]
[1720902415289,1.42283786,3170.6,3170.5,4.4157]
[1720902415656,0.33008294,3170.6,3170.5,4.4157]
[1720902415966,1.42284273,3170.6,3170.5,4.4157]
[1720902418373,1.42284273,3170.6,3170.5,2.20785]
[1720902418696,1.4228411,3170.6,3170.3,2.20795]
[1720902418843,1.09275816,3170.5,3170.3,2.20795]
[1720902419165,1.09275816,3170.4,3170.3,2.20795]
[1720902419359,1.09275816,3170.5,3170.3,2.20795]
[1720902419579,1.09275816,3170.4,3170.1,2.20807]
[1720902419764,1.09275816,3170.3,3170.1,2.20807]
[1720902419966,1.09275816,3170.5,3170.2,2.20804]
[1720902420167,1.09275816,3170.4,3170.2,2.20804]
[1720902420392,1.09275816,3170.3,3170.2,2.20804]
[1720902420956,1.09275816,3170.5,3170.2,2.20804]
[1720902421155,1.09284788,3170.4,3170.2,2.20804]
[1720902421377,1.09284788,3170.3,3170.2,2.20804]
[1720902422099,1.09284788,3170.3,3170.2,3.01204]
[1720902424461,1.09284842,3170.3,3170.2,3.01204]
[1720902424893,0.33008294,3170.6,3170.2,3.01204]
[1720902425206,1.0928481,3170.5,3170.2,3.01204]
[1720902425499,1.0928481,3170.4,3170.2,3.01204]
[1720902425710,1.0928481,3170.3,3170.2,3.01204]
[1720902427005,1.0928481,3170.3,3170.2,6.267221]
[1720902427419,1.09278644,3170.3,3170.2,6.267221]
[1720902427776,1.09279027,3170.3,3170.2,6.267221]
[1720902429386,0.33008294,3170.6,3170.3,2.20798]
[1720902429585,1.09277622,3170.5,3170.3,2.20798]
[1720902429812,1.09277622,3170.4,3170.3,2.20798]
[1720902431008,1.09280513,3170.4,3170.3,2.20798]
[1720902431318,1.09279777,3170.4,3170.3,2.20798]
[1720902434709,1.09281257,3170.4,3170.3,2.20798]
[1720902435092,1.09281253,3170.4,3170.3,2.20798]
[1720902437528,1.09279298,3170.4,3170.3,2.20798]
[1720902438032,1.09279627,3170.4,3170.3,2.20798]
[1720902441332,1.09279618,3170.4,3170.3,2.20798]
[1720902444663,0.33008294,3170.6,3170.3,2.20798]
[1720902444801,1.09279902,3170.4,3170.3,2.20798]
[1720902445156,0.33008294,3170.6,3170.3,2.20798]
[1720902445454,1.09279941,3170.5,3170.2,5.49675]
[1720902445739,1.09279941,3170.4,3170.2,5.49675]
[1720902445958,0.33008294,3170.6,3170.2,5.49675]
[1720902445959,1.09279941,3170.3,3170.2,5.49675]
[1720902446114,1.09279941,3170.5,3170.2,5.49675]
[1720902446307,1.09279941,3170.4,3170.2,5.49675]
[1720902446505,1.09279941,3170.3,3170.2,5.49675]
[1720902447502,0.33008294,3170.6,3170.2,5.49675]
[1720902447804,1.0927998,3170.5,3170.2,5.49675]
[1720902448009,1.09279891,3170.4,3170.3,2.20799]
[1720902448603,1.09279871,3170.4,3170.3,2.20799]
[1720902450959,1.09279871,3170.4,3170.3,2.20678752]
[1720902451515,0.33008294,3170.6,3170.4,2.20791]
[1720902451750,1.09279418,3170.5,3170.4,2.20791]
[1720902454762,0.33008294,3170.6,3170.4,2.20791]
[1720902454932,1.09279416,3170.5,3170.4,2.20791]
[1720902458150,0.33008294,3170.6,3170.4,2.20791]
[1720902458363,1.09279288,3170.5,3170.4,2.20791]
[1720902461325,0.33008294,3170.6,3170.4,4.41578]
[1720902461595,1.09279174,3170.5,3170.4,4.41578]
[1720902461860,1.09279169,3170.5,3170.4,2.20787]
[1720902465172,0.33008294,3170.6,3170.5,2.20785]
[1720902465351,1.42287374,3170.6,3170.5,2.20785]
[1720902465538,1.42287373,3170.6,3170.5,2.20785]
[1720902467730,0.33008294,3170.6,3170.5,2.20785]
[1720902467932,1.42287373,3170.6,3170.5,2.20785]
[1720902471733,0.33008294,3170.6,3170.5,2.20785]
[1720902471964,1.42287335,3170.6,3170.5,2.20785]
[1720902475265,0.33008294,3170.6,3170.5,2.20785]
[1720902475461,1.42282796,3170.6,3170.5,2.20785]
[1720902475890,1.42282835,3170.6,3170.5,2.20785]
[1720902478639,1.42283848,3170.6,3170.5,2.20785]
[1720902481041,1.42283848,3170.6,3170.5,4.4157]
[1720902481241,1.42283132,3170.6,3170.5,4.4157]
[1720902484446,0.33008294,3170.6,3170.5,4.4157]
[1720902484648,1.4228292,3170.6,3170.5,4.4157]
[1720902484846,0.33008294,3170.6,3170.5,4.4157]
[1720902485088,1.4228292,3170.6,3170.5,4.4157]
[1720902485292,1.4228292,3170.6,3170.5,2.20785]
[1720902487299,1.42284197,3170.6,3170.5,2.20785]
[1720902487878,1.42284208,3170.6,3170.5,2.20785]
[1720902491390,1.42287529,3170.6,3170.5,2.20785]
[1720902494107,1.42287529,3170.6,3170.3,2.20793]
[1720902494308,1.09279235,3170.5,3170.3,2.20793]
[1720902494512,1.09279235,3170.4,3170.3,2.20793]
[1720902494732,0.33008294,3170.6,3170.3,2.20793]
[1720902495021,1.09279224,3170.5,3170.3,2.20793]
[1720902495318,1.09277678,3170.4,3170.3,2.20793]
[1720902497016,1.09277678,3170.4,3170.1,2.20807]
[1720902497182,1.09277678,3170.3,3170.2,2.3673]
[1720902497387,1.09277678,3170.5,3170.2,2.3673]
[1720902497583,1.09278319,3170.4,3170.2,2.3673]
[1720902497786,1.09278319,3170.3,3170.2,2.3673]
[1720902498006,0.33008294,3170.6,3170.2,2.3673]
[1720902498211,1.09277952,3170.5,3170.2,4.57536]
[1720902498424,1.09277952,3170.4,3170.2,4.57536]
[1720902498613,1.09277952,3170.5,3170.2,4.57536]
[1720902501228,1.09277952,3170.4,3170.2,4.57536]
[1720902501450,0.33008294,3170.6,3170.2,4.57536]
[1720902501734,1.09277878,3170.5,3170.2,4.57536]
[1720902501891,1.09277878,3170.4,3170.2,4.57536]
[1720902502233,1.09277878,3170.3,3170.2,4.57536]
[1720902502437,1.09277878,3170.5,3170.2,4.57536]
[1720902502640,1.09277878,3170.4,3170.2,4.57536]
[1720902502837,1.09277878,3170.5,3170.2,4.57536]
[1720902503050,1.09277878,3170.4,3170.2,4.57536]
[1720902503202,1.09277878,3170.5,3170.2,4.57536]
[1720902503402,0.33008294,3170.6,3170.2,4.57536]
[1720902503403,1.09277878,3170.4,3170.2,4.57536]
[1720902503720,1.09277878,3170.3,3170.2,4.57536]
[1720902503925,1.09277878,3170.5,3170.2,4.57536]
[1720902504242,1.09277878,3170.4,3170.2,4.57536]
[1720902504441,1.09277878,3170.5,3170.2,4.57536]
[1720902504605,1.09277878,3170.4,3170.2,4.57536]
[1720902504926,1.09278583,3170.3,3170.2,4.57536]
[1720902505333,1.09278934,3170.3,3170.2,4.57536]
[1720902506948,1.09278934,3170.3,3170.2,2.20806]
[1720902507850,1.09279348,3170.3,3170.2,2.20806]
[1720902508016,1.09279348,3170.5,3170.2,2.20806]
[1720902508200,2.76508294,3170.6,3170.2,2.20806]
[1720902508201,1.09279311,3170.4,3170.2,2.20806]
[1720902508402,1.09279311,3170.3,3170.2,2.20806]
[1720902508597,1.09279311,3170.5,3170.2,2.20806]
[1720902508846,1.09279311,3170.4,3170.2,2.20806]
[1720902509140,1.09279311,3170.3,3170.2,2.20806]
[1720902509341,1.09279311,3170.5,3170.2,2.20806]
[1720902509545,1.09279311,3170.4,3170.2,2.20806]
[1720902509699,1.09279311,3170.5,3170.2,2.20806]
[1720902509905,1.09279311,3170.4,3170.2,2.20806]
[1720902510108,1.09279311,3170.5,3170.2,2.20806]
[1720902510350,1.09279311,3170.4,3170.2,2.20806]
[1720902510504,1.09279311,3170.5,3170.2,2.20806]
[1720902510704,1.09279311,3170.4,3170.2,2.20806]
[1720902510971,1.09279311,3170.5,3170.2,2.20806]
[1720902511131,1.09279311,3170.4,3170.2,2.20806]
[1720902511332,1.09279311,3170.5,3170.2,2.20806]
[1720902511654,0.33008294,3170.6,3170.2,2.20806]
[1720902511655,1.09280226,3170.4,3170.2,2.20806]
[1720902511821,1.09280226,3170.3,3170.2,2.20806]
[1720902512360,1.09280226,3170.5,3170.2,2.20806]
[1720902512517,1.09280226,3170.4,3170.2,2.20806]
[1720902512858,1.09280226,3170.3,3170.2,2.20806]
[1720902513065,1.09280226,3170.5,3170.2,2.20806]
[1720902513360,1.09280226,3170.4,3170.2,2.20806]
[1720902513558,0.33008294,3170.6,3170.2,2.20806]
[1720902513559,1.09280226,3170.3,3170.2,2.966816]
[1720902513723,1.09280226,3170.5,3170.3,0.804]
[1720902513922,1.09279435,3170.4,3170.3,0.804]
[1720902514851,0.33008294,3170.6,3170.3,0.804]
[1720902515050,1.09279549,3170.5,3170.3,0.804]
[1720902515356,0.33008294,3170.6,3170.3,0.804]
[1720902515559,1.0927951,3170.4,3170.3,0.804]
[1720902516050,1.0927951,3170.5,3170.3,0.804]
[1720902516254,1.0927951,3170.4,3170.3,0.804]
[1720902517840,1.09279232,3170.4,3170.3,0.804]
[1720902518220,0.33008294,3170.6,3170.3,0.804]
[1720902518477,1.09279217,3170.5,3170.3,0.804]
[1720902518620,1.09279217,3170.4,3170.3,0.804]
[1720902518821,1.09279217,3170.5,3170.3,0.804]
[1720902519165,1.09279217,3170.4,3170.3,0.804]
[1720902521636,1.09279188,3170.4,3170.3,0.804]
[1720902525077,1.09279282,3170.5,3170.3,0.804]
[1720902525269,1.09279282,3170.4,3170.3,0.804]
[1720902525470,1.09280232,3170.4,3170.3,0.804]
[1720902525671,1.09280232,3170.4,3170.2,4.53946]
[1720902525997,1.09280232,3170.3,3170.2,4.53946]
[1720902527868,1.09280223,3170.3,3170.2,4.53946]
[1720902528390,0.33008294,3170.6,3170.2,4.53946]
[1720902528681,1.09280231,3170.5,3170.2,4.53946]
[1720902528881,1.09280231,3170.4,3170.2,4.53946]
[1720902529188,1.09280231,3170.3,3170.2,4.53946]
[1720902531884,1.09280239,3170.3,3170.2,4.53946]
[1720902532247,1.09280266,3170.3,3170.2,4.53946]
[1720902535294,0.33008294,3170.6,3170.2,4.53946]
[1720902535490,1.09280232,3170.3,3170.2,4.53946]
[1720902535793,0.33008294,3170.6,3170.2,4.53946]
[1720902536032,1.09279039,3170.5,3170.2,4.53946]
[1720902536151,1.09279039,3170.4,3170.2,4.53946]
[1720902536494,1.09279039,3170.3,3170.2,4.53946]
[1720902536674,1.09279039,3170.5,3170.2,4.53946]
[1720902536876,1.09279039,3170.4,3170.2,4.53946]
[1720902537064,1.09279039,3170.5,3170.2,4.53946]
[1720902537272,1.09279039,3170.4,3170.2,4.53946]
[1720902537577,1.09279039,3170.3,3170.2,4.53946]
[1720902537979,1.09279039,3170.5,3170.2,4.53946]
[1720902538175,1.0927928,3170.4,3170.2,4.53946]
[1720902538383,1.0927928,3170.3,3170.2,4.53946]
[1720902538569,1.0927928,3170.5,3170.2,4.53946]
[1720902538769,1.09278968,3170.4,3170.2,4.53946]
[1720902538977,1.09278968,3170.3,3170.2,4.53946]
[1720902539476,1.09278968,3170.5,3170.2,4.53946]
[1720902539652,1.09278968,3170.4,3170.2,4.53946]
[1720902539852,1.09278968,3170.3,3170.2,4.53946]
[1720902541101,0.33008294,3170.6,3170.2,4.53946]
[1720902541268,1.09278883,3170.3,3170.2,4.53946]
[1720902544414,0.33008294,3170.6,3170.2,4.53946]
[1720902544713,1.09278345,3170.5,3170.2,4.53946]
[1720902544914,1.09278576,3170.4,3170.2,4.53946]
[1720902545118,1.09278576,3170.3,3170.2,4.53946]
[1720902547106,1.09278576,3170.3,3170.2,2.20806]
[1720902547325,1.09279138,3170.3,3170.2,2.20806]
[1720902547888,1.09279376,3170.3,3170.2,2.20806]
[1720902551157,1.09279891,3170.3,3170.2,2.20806]
[1720902552954,1.09279891,3170.3,3170.2,4.65736]
[1720902553106,1.09279891,3170.3,3170.2,5.424316]
[1720902554539,0.33008294,3170.6,3170.2,5.424316]
[1720902554736,1.09278186,3170.3,3170.2,5.424316]
[1720902555014,0.33008294,3170.6,3170.3,0.804]
[1720902555240,1.09277699,3170.5,3170.3,0.804]
[1720902555464,1.09277699,3170.4,3170.3,0.804]
[1720902557145,1.09277699,3170.4,3170.3,3.01199]
[1720902558063,1.09276695,3170.4,3170.3,3.01199]
[1720902561368,1.09273187,3170.4,3170.3,3.01199]
[1720902564710,1.0927294,3170.4,3170.3,3.01199]
[1720902565059,0.33008294,3170.6,3170.3,3.01199]
[1720902565287,1.09272661,3170.5,3170.3,3.01199]
[1720902566408,1.09272661,3170.5,3170.4,2.20792]
[1720902566559,1.09272661,3170.5,3170.4,5.42414]
[1720902566960,2.32296664,3171.0,3170.5,2.20781]
[1720902566961,1.09272661,3170.9,3170.5,2.20781]
[1720902567188,1.09272661,3170.8,3170.5,3.01181]
[1720902567407,1.09272661,3170.7,3170.5,3.01181]
[1720902567788,1.09272661,3170.6,3170.5,3.01181]
[1720902567985,2.65256122,3171.0,3170.5,3.01181]
[1720902568182,1.09270193,3170.9,3170.5,3.01181]
[1720902568373,1.09270193,3170.8,3170.5,3.01181]
[1720902568576,1.09270193,3170.7,3170.5,3.01181]
[1720902568774,1.09270193,3170.6,3170.5,3.01181]
[1720902571320,0.33003174,3171.0,3170.5,3.01181]
[1720902571468,1.09269934,3170.6,3170.5,3.01181]
[1720902574807,0.33003174,3171.0,3170.6,2.20776]
[1720902575019,1.09267795,3170.9,3170.6,2.20776]
[1720902575186,1.0926771,3170.8,3170.6,2.20776]
[1720902575382,1.0926771,3170.7,3170.6,2.20776]
[1720902575585,1.0926771,3170.9,3170.6,2.20776]
[1720902577541,1.09266186,3170.8,3170.6,2.20776]
[1720902577696,1.09266186,3170.7,3170.6,2.20776]
[1720902578100,1.09265617,3170.7,3170.6,2.20776]
[1720902579400,1.09265617,3170.7,3170.6,7.491338]
[1720902579695,1.09265617,3170.7,3170.6,8.93222]
[1720902581327,0.33004987,3171.5,3171.1,2.20737]
[1720902581528,1.09248586,3171.4,3171.1,3.01137]
[1720902581730,1.09248586,3171.3,3171.1,3.01137]
[1720902582045,1.09248586,3171.2,3171.1,3.01137]
[1720902583298,1.09248586,3171.2,3171.1,0.804]
[1720902584756,1.09253869,3171.2,3171.1,0.804]
[1720902585068,0.33004987,3171.5,3171.1,0.804]
[1720902585251,1.09253823,3171.4,3171.1,0.804]
[1720902585456,1.09253823,3171.3,3171.1,0.804]
[1720902585636,1.09253823,3171.2,3171.1,0.804]
[1720902587420,1.09255077,3171.2,3171.1,0.804]
[1720902588033,1.09255077,3171.2,3171.0,2.20749]
[1720902588244,1.09255077,3171.2,3170.7,2.20768]
[1720902588245,1.09255077,3171.1,3170.9,0.804]
[1720902588459,2.2827,3171.4,3170.7,0.804]
[1720902588460,1.09255077,3171.3,3170.7,0.804]
[1720902588631,1.09255077,3171.3,3170.3,2.20794]
[1720902588632,2.2827,3171.0,3170.3,2.20794]
[1720902588835,1.09255077,3170.9,3170.3,2.20794]
[1720902589074,1.09255077,3170.9,3170.3,3.01194]
[1720902589968,1.09255077,3170.9,3170.3,0.804]
[1720902590174,0.33752508,3170.8,3170.3,0.804]
[1720902590498,1.09255077,3170.7,3170.3,0.804]
[1720902591337,0.33752508,3170.8,3170.3,0.804]
[1720902591560,1.09278707,3170.7,3170.3,0.804]
[1720902591887,1.09278707,3170.6,3170.3,0.804]
[1720902592060,1.09278707,3170.5,3170.3,0.804]
[1720902592384,2.2827,3171.0,3170.3,0.804]
[1720902592599,1.09278621,3170.9,3170.3,0.804]
[1720902592895,1.09278621,3170.8,3170.3,0.804]
[1720902593062,1.09278621,3170.7,3170.3,0.804]
[1720902593260,1.09278621,3170.6,3170.3,0.804]
[1720902593559,1.09278621,3170.5,3170.3,0.804]
[1720902593758,1.09278621,3170.4,3170.3,0.804]
[1720902594009,1.09278621,3170.4,3170.3,3.797211]
[1720902594661,2.2827,3171.0,3170.3,3.797211]
[1720902594862,1.09271667,3170.9,3170.5,0.804]
[1720902595090,1.09271667,3170.8,3170.5,0.804]
[1720902595297,1.09271668,3170.7,3170.5,0.804]
[1720902595481,1.09271668,3170.6,3170.5,0.804]
[1720902595682,1.09271668,3170.9,3170.5,0.804]
[1720902595906,1.42281769,3170.8,3170.5,0.804]
[1720902596061,1.09271668,3170.7,3170.5,0.804]
[1720902598096,1.09271743,3170.6,3170.5,0.804]
[1720902601020,1.09270072,3170.6,3170.5,5.21965]
[1720902601355,1.09270072,3170.6,3170.5,5.988735]
[1720902601828,1.09270072,3170.6,3170.5,3.780885]
[1720902601992,1.09270072,3170.6,3170.5,3.0118]
[1720902602879,1.09270072,3170.6,3170.3,4.67915]
[1720902603217,1.09270072,3170.5,3170.4,0.804]
[1720902603412,1.09270072,3170.7,3170.4,0.804]
[1720902603979,0.33010101,3170.8,3170.4,0.804]
[1720902604221,1.09274044,3170.7,3170.4,0.804]
[1720902604425,1.09274371,3170.6,3170.4,0.804]
[1720902604617,1.09274371,3170.5,3170.4,0.804]
[1720902606724,1.09273363,3170.5,3170.4,0.804]
[1720902607280,0.33010101,3170.8,3170.4,0.804]
[1720902607516,1.09273599,3170.7,3170.4,0.804]
[1720902607714,1.09273599,3170.6,3170.4,0.804]
[1720902607884,1.09273599,3170.7,3170.4,0.804]
[1720902610823,1.09276039,3170.6,3170.4,0.804]
[1720902611122,1.09276039,3170.5,3170.4,0.804]
[1720902612316,1.09276039,3170.5,3170.4,5.30842]
[1720902614020,0.33010101,3170.8,3170.4,5.30842]
[1720902614193,1.09275071,3170.7,3170.4,5.30842]
[1720902614395,0.33010101,3170.8,3170.4,5.30842]
[1720902614621,1.0927598,3170.7,3170.4,5.30842]
[1720902614787,1.0927598,3170.6,3170.4,5.30842]
[1720902614987,1.0927598,3170.7,3170.4,5.30842]
[1720902616721,1.0927593,3170.6,3170.4,5.30842]
[1720902616921,1.0927593,3170.5,3170.4,5.30842]
[1720902617226,1.0927593,3170.7,3170.4,5.30842]
[1720902617408,1.09276343,3170.6,3170.4,5.30842]
[1720902617611,1.09276343,3170.5,3170.4,0.804]
[1720902617921,1.09276343,3170.7,3170.4,0.804]
[1720902618232,1.09276343,3170.6,3170.4,0.804]
[1720902618415,1.09276343,3170.5,3170.4,0.804]
[1720902618614,0.33010101,3170.8,3170.4,0.804]
[1720902618615,1.09276343,3170.7,3170.4,0.804]
[1720902618815,1.09276343,3170.6,3170.4,0.804]